Cogmind - Beta 13 @@@ ROGUE MODE // 2024.04.06 @ 22:50:52 // AFD2020/Player2 Player: opdo Result: Core destroyed Performance ------------- Evolutions (2) 1000 Regions Visited (3) 600 Robots Destroyed (16) 80 Value Destroyed (429) 429 Prototype IDs (2) 40 Alien Tech Used (0) 0 Bonus (455) 455 TOTAL SCORE: 2604 Bonus ------- Follower Combat Kills 479 Friendly Fire -24 Cogmind --------- Core Integrity 0/550 Matter 300/300 Energy 154/160 System Corruption 1% Temperature Cool (3) Movement Walking (120) Location -8/Materials Parts ------- > --- POWER (1) -------- Light Nuclear Core > --- PROPULSION (3) --- Aluminum Leg Aluminum Leg Carbon-fiber Leg > --- UTILITY (5) ------ Medium Storage Unit Visual Processing Unit Transport Network Coupler Melee Analysis Suite Hardened Medium Armor Plating > --- WEAPON (2) ------- Heavy Hammer Katana > --- INVENTORY (10) --- Ion Engine Hover Unit Flight Unit Advanced Weight Redist. System Melee Analysis Suite Tractor Beam Assault Rifle Light Assault Rifle Greatsword Peak State ------------ > --- POWER ------------ Light Nuclear Core > --- PROPULSION ------- Aluminum Leg Aluminum Leg Carbon-fiber Leg > --- UTILITY ---------- Medium Storage Unit Visual Processing Unit Transport Network Coupler Melee Analysis Suite Hardened Medium Armor Plating > --- WEAPON ----------- Heavy Hammer Katana > --- INVENTORY -------- Ion Engine Hover Unit Flight Unit Advanced Weight Redist. System Melee Analysis Suite Tractor Beam Assault Rifle Light Assault Rifle Greatsword [Rating: 25] Favorites ----------- Power Ion Engine Engine Ion Engine Power Core Light Nuclear Core Propulsion Hover Unit Treads Light Treads Leg Aluminum Leg Hover Unit Hover Unit Utility Medium Storage Unit Device Improved Terrain Scanner Storage Medium Storage Unit Processor Transport Network Coupler Protection Hardened Medium Armor Plating Weapon Light Assault Rifle Ballistic Gun Light Assault Rifle Impact Weapon Heavy Hammer Slashing Weapon Katana Build | -11 -10 -9 -8 ------- Run | Yrd Mat Mat Mat Slots Evolved 4 | . . 2 2 Power . | . . . . Propulsion 1 | . . . 1 Utility 3 | . . 2 1 Weapon . | . . . . Parts Attached 30 | 7 5 8 10 Power 3 | 1 . 1 1 Engine 2 | 1 . 1 . Core 1 | . . . 1 Reactor . | . . . . Propulsion 13 | 3 3 1 6 Treads 1 | 1 . . . Leg 7 | 2 1 . 4 Wheel . | . . . . Hover 5 | . 2 1 2 Flight . | . . . . Utility 8 | 1 1 4 2 Device 2 | . 1 1 . Storage 2 | 1 . 1 . Processor 3 | . . 2 1 Hackware . | . . . . Protection 1 | . . . 1 Artifact . | . . . . Weapon 6 | 2 1 2 1 Energy Gun . | . . . . Energy Cannon . | . . . . Ballistic Gun 4 | 2 1 1 . Ballistic Cannon . | . . . . Launcher . | . . . . Special Weapon . | . . . . Impact Weapon 1 | . . . 1 Slashing Weapon 1 | . . 1 . Piercing Weapon . | . . . . Special Melee Weapon . | . . . . Unidentified Prototypes 1 | . . 1 . Parts Lost 6 | . . 2 4 Power 2 | . . 1 1 Propulsion 3 | . . . 3 Utility 1 | . . 1 . Weapon . | . . . . Highest Loss Streak 4 | . . 2 4 To Critical Strikes . | . . . . Average Slot Usage (%) 95 | . 96 91 98 Engine 10 | . 14 11 5 Core 1 | . . . 3 Leg 7 | . 14 . 6 Hover 16 | . 9 22 19 Device 11 | . 14 15 4 Storage 11 | . 14 11 9 Processor 12 | . . 11 27 Protection 1 | . . . 4 Ballistic Gun 16 | . 28 16 4 Impact Weapon 1 | . . . 4 Slashing Weapon 3 | . . 2 9 Naked Turns . | . . . . Heaviest Build 28 | 13 14 20 28 Greatest Support 35 | 20 20 12 35 Greatest Overweight (x) 3 | 1 2 3 2 Average Overweight (x) . | . . 1 . Largest Inventory Capacity 10 | 8 8 10 10 Average Capacity 9 | 7 8 9 10 Most Carried 10 | 4 8 8 10 Average Carried 6 | 2 6 6 7 Final Capacity 10 | 8 8 10 10 Final Carried 10 | 4 8 8 10 Class Distribution -------------------- 61% | Mutant 22% | Scavenger-Mutant 13% | Scavenger-Gladiator Dominant Class ---------------- Mutant | -10/Materials Mutant | -9/Materials Scavenger-Mutant | -8/Materials Resources | -11 -10 -9 -8 ----------- Run | Yrd Mat Mat Mat Matter Collected 648 | 192 194 182 80 Remotely 202 | . . 182 20 Salvage Created 588 | 77 75 248 188 Parts 36 | 7 9 15 5 Haulers Intercepted . | . . . . Recyclers Shooed . | . . . . Parts Field Recycled . | . . . . Retrieved Matter . | . . . . Parts Self-Destructed . | . . . . Prevented . | . . . . Kills | -11 -10 -9 -8 ------- Run | Yrd Mat Mat Mat Combat Hostiles Destroyed 10 | . 2 4 4 Melee 4 | . . . 4 Guns 6 | . 2 4 . Classes Destroyed 8 | 2 3 3 . Worker 1 | . . 1 . Builder 1 | . . 1 . Tunneler 1 | 1 . . . Recycler 1 | 1 . . . Operator 1 | . 1 . . Watcher 1 | . . 1 . Swarmer 1 | . 1 . . Grunt 9 | . 1 4 4 Best Kill Streak 3 | 2 1 2 3 Combat Bots Only 3 | . 1 1 3 Max Kills in Single Turn 1 | 1 1 1 1 Gunslinging . | . . . . Exploded . | . . . . Melee 1 | . . . 1 Uniques/NPCs Destroyed . | . . . . Combat | -11 -10 -9 -8 -------- Run | Yrd Mat Mat Mat Hostile Shots Fired 85 | . 28 15 42 Missed 18 | . 7 5 6 Damage Taken 939 | . 223 112 604 Core 191 | . 23 35 133 Absorbed by Shields . | . . . . Core Remaining (%) 72 | 100 31 85 . Volleys Fired 42 | 3 21 18 . Largest 2 | 2 2 2 . Hottest 40 | 40 40 40 . Shots Fired 78 | 6 42 30 . Gun 78 | 6 42 30 . Cannon . | . . . . Launcher . | . . . . Special . | . . . . Kinetic 78 | 6 42 30 . Thermal . | . . . . Explosive . | . . . . Electromagnetic . | . . . . Robot Hit Streak 10 | 5 10 7 . Robot Miss Streak 4 | 1 3 4 . Penetration Max . | . . . . Secondary Targets 1 | . 1 . . Max Gunslinging Chain 1 | . 1 . . Shots Hit Robots 65 | 5 27 18 15 Core Hits 20 | 3 5 10 2 Critical Kills . | . . . . Critical Parts Destroyed 1 | . . . 1 Critical Strikes 3 | . . . 3 Smash 1 | . . . 1 Sever 2 | . . . 2 Melee Attacks 22 | . . 1 21 Impact 4 | . . . 4 Slashing 18 | . . 1 17 Piercing . | . . . . Sneak Attacks 2 | . . 1 1 Combat Hostiles . | . . . . Follow-up Attacks 2 | . . . 2 Damage Inflicted 1177 | 53 310 269 545 Guns 564 | 53 310 201 . Cannons . | . . . . Explosions . | . . . . Melee 613 | . . 68 545 Ramming . | . . . . Kinetic 564 | 53 310 201 . Thermal . | . . . . Explosive . | . . . . Electromagnetic . | . . . . Impact 84 | . . . 84 Slashing 529 | . . 68 461 Piercing . | . . . . Highest Corruption 1 | . . . 1 Average Corruption 1 | . . . 1 Corruption Purged . | . . . . Corruption Blocked . | . . . . Effects 3 | . . . 3 Message Errors 1 | . . . 1 Data Loss (minor) 2 | . . . 2 Overload Shots . | . . . . Overflow Damage 82 | . . . 82 Projectiles . | . . . . Explosions . | . . . . Melee 82 | . . . 82 Knockbacks 1 | . . . 1 Impact 1 | . . . 1 Kinetic . | . . . . Secondary . | . . . . Self-Inflicted Damage . | . . . . Shots . | . . . . Rammed . | . . . . Targets Rammed . | . . . . Kicked . | . . . . Crushed . | . . . . Highest Temperature 24 | . 18 5 24 Average Temperature 8 | . 7 4 10 Received Heat Transfer 489 | . 84 63 342 Siege Activations . | . . . . Robots Corrupted . | . . . . Combat Hostiles . | . . . . Parts Fried . | . . . . Impact Corruptions 1 | . . . 1 Robots Melted . | . . . . Combat Hostiles . | . . . . Parts Melted . | . . . . Heat Transferred . | . . . . Parts Sabotaged . | . . . . Parts Stolen . | . . . . Parts Stripped . | . . . . Power Chain Reactions . | . . . . Alert | -11 -10 -9 -8 ------- Run | Yrd Mat Mat Mat Peak Influence 509 | 10 213 409 509 Initial 172 | . 6 89 172 Average 196 | 2 141 217 282 Maximum Alert Level 2 | . 1 2 2 Low Security (%) 45 | 100 52 52 18 Level 1 47 | . 47 37 69 Level 2 6 | . . 10 12 Level 3 . | . . . . Level 4 . | . . . . Level 5 . | . . . . High Security . | . . . . Max Security . | . . . . Squads Dispatched 7 | . 1 3 3 Investigation 3 | . . 1 2 Extermination . | . . . . Reinforcement 4 | . 1 2 1 Assault . | . . . . Garrison . | . . . . Intercept . | . . . . Searches Triggered . | . . . . Construction Impeded . | . . . . Haulers Reinforced . | . . . . Active Scanning Responses . | . . . . Cargo Convoy Interrupts . | . . . . Stealth | -11 -10 -9 -8 --------- Run | Yrd Mat Mat Mat Distress Signals 2 | . . 1 1 Communications Jammed . | . . . . Distress Signals . | . . . . Times Spotted 40 | . 8 12 20 Peak Tracking Total 10 | . 2 4 10 Tactical Retreats 1 | . . . 1 Traps | -11 -10 -9 -8 ------- Run | Yrd Mat Mat Mat Traps Triggered 4 | . 1 2 1 Indirectly . | . . . . Trap Hack Attempts . | . . . . Triggered . | . . . . Disarmed . | . . . . Reprogrammed . | . . . . Reused . | . . . . Traps Extracted . | . . . . Installed . | . . . . Triggered . | . . . . Machines | -11 -10 -9 -8 ---------- Run | Yrd Mat Mat Mat Machines Disabled 1 | . . . 1 Max in Single Turn . | . . . . Machines Repaired . | . . . . Machines Dismantled . | . . . . Machines Sabotaged . | . . . . Overloaded Fab Kills . | . . . . Hacking | -11 -10 -9 -8 --------- Run | Yrd Mat Mat Mat Machines Accessed 9 | . 2 3 4 Terminals 6 | . 1 2 3 Fabricators . | . . . . Repair Stations . | . . . . Recycling Units 2 | . 1 . 1 Scanalyzers 1 | . . 1 . Garrison Access . | . . . . Total Hacks 22 | . 5 7 10 Successful 10 | . 3 3 4 Failed 12 | . 2 4 6 Catastrophic 1 | . . . 1 Database Lockouts . | . . . . Manual 15 | . 3 5 7 Terminals 17 | . 4 5 8 Fabricators . | . . . . Repair Stations . | . . . . Recycling Units 3 | . 1 . 2 Scanalyzers 2 | . . 2 . Garrison Access . | . . . . Terminal Hacks 2 | . 1 . 1 Alert Level 1 | . . . 1 Zone Layout 1 | . 1 . . Fabricator Hacks . | . . . . Repair Station Hacks . | . . . . Recycling Unit Hacks 2 | . 1 . 1 Retrieve Components 2 | . 1 . 1 Scanalyzer 2 | . . 2 . Insert Component 1 | . . 1 . Analyze 1 | . . 1 . Garrison Access Hacks . | . . . . Unauthorized Hacks 4 | . 1 1 2 Terminals 4 | . 1 1 2 Botnet 3 | . 1 1 1 Operators 1 | . . . 1 Fabricators . | . . . . Repair Stations . | . . . . Recycling Units . | . . . . Scanalyzers . | . . . . Garrison Access . | . . . . Data Cores Recovered . | . . . . Used . | . . . . Hacking Detections 8 | . 1 3 4 Full Trace Events 1 | . . . 1 Feedback Events 1 | . . . 1 Corruption 1 | . . . 1 Feedback Blocked . | . . . . Robot Schematics Acquired . | . . . . Robots Built . | . . . . Authchips . | . . . . Time . | . . . . Total Robot Build Rating . | . . . . Part Schematics Acquired 1 | . . 1 . Parts Built . | . . . . Authchips . | . . . . Time . | . . . . Total Part Build Rating . | . . . . Parts Repaired . | . . . . Time . | . . . . Parts Recycled . | . . . . Recycled Matter . | . . . . Retrieved Matter . | . . . . Retrieved Components 2 | . 2 . . Parts Scanalyzed 1 | . . 1 . Part Schematics Acquired 1 | . . 1 . Parts Damaged . | . . . . Bothacking | -11 -10 -9 -8 ------------ Run | Yrd Mat Mat Mat Used RIF Installer . | . . . . Robots Hacked . | . . . . Non-combat . | . . . . Combat . | . . . . Robot Hacks Applied . | . . . . Relay Couplers Released . | . . . . Fabnet Peak Effective % . | . . . . Robots Rewired . | . . . . Allies Hacked . | . . . . Hacks Repelled . | . . . . Allies | -11 -10 -9 -8 -------- Run | Yrd Mat Mat Mat Total Allies 1 | . 1 . . Largest Group 1 | . 1 1 1 Highest-Rated Group 72 | . 57 64 72 Highest-Rated Ally 72 | . 57 64 72 Total Orders . | . . . . Ally Attacks 103 | . 33 23 47 Total Damage 1612 | . 204 373 1035 Kills 22 | . 4 6 12 Allies Corrupted . | . . . . Allies Melted . | . . . . Intel | -11 -10 -9 -8 ------- Run | Yrd Mat Mat Mat Robot Analysis Total . | . . . . Derelict Logs Recovered . | . . . . Drone Launches . | . . . . Drone Recoveries . | . . . . Exploration | -11 -10 -9 -8 ------------- Run | Yrd Mat Mat Mat Turns Passed 1125 | 82 384 309 350 Spaces Moved 732 | 49 238 206 239 Core 17 | 17 . . . Treads . | . . . . Legs 212 | 32 123 . 57 Wheels . | . . . . Hover 503 | . 115 206 182 Flight . | . . . . Fastest Speed 50 | 50 116 116 112 Average Speed 121 | 113 129 116 120 Slowest Speed 260 | 190 190 240 260 Overloaded Moves . | . . . . Propulsion Burnouts . | . . . . Robots Hopped . | . . . . Cave-ins Triggered . | . . . . Exploration Rate (%) 19 | 4 31 20 24 Regions Visited 3 Branch Regions . Pre-discovered Areas . | . . . . Known Exits Taken . | . . . . Unknown Exits Taken 3 | 1 1 1 . Scrap Searched . | . . . . Spaces Dug . | . . . . Terrain Destroyed . | . . . . Melee . | . . . . Projectile . | . . . . AOE . | . . . . Terrain Rammed . | . . . . Walls Destroyed . | . . . . Machines Disabled . | . . . . Actions | -11 -10 -9 -8 --------- Run | Yrd Mat Mat Mat Total 874 | 71 283 247 273 Wait 2 | . . 2 . Move 729 | 48 237 205 239 Hop . | . . . . Pick Up 40 | 11 13 9 7 Fast Attach . | . . . . Attach 23 | 7 3 7 6 Detach 1 | 1 . . . Swap 8 | . 2 2 4 Drop 11 | 1 7 3 . Fire 42 | 3 21 18 . Melee 18 | . . 1 17 Ram . | . . . . Kick . | . . . . Crush . | . . . . Escape Stasis . | . . . . Rewire . | . . . . Trap . | . . . . Miscellaneous . | . . . . Route ------- -11/Scrapyard -10/Materials -9/Materials (discovered 2 exits: *Mat / [*Sto]) -8/Materials History --------- Turn | Location | Event 19 | -11/Scrapyard | Discovered new exit (range 16) 83 | -11/Scrapyard | Entered Materials 211 | -10/Materials | Core integrity fell below 50% 317 | -10/Materials | Build established: Mutant 439 | -10/Materials | Discovered new exit (range 8) 467 | -10/Materials | Entered another Materials area 467 | -9/Materials | Evolved 2 slots: Utility x2 677 | -9/Materials | Discovered new exit (range 16) 731 | -9/Materials | Discovered new exit (range 14) 776 | -9/Materials | Entered another Materials area 776 | -8/Materials | Evolved 2 slots: Propulsion x1, Utility x1 1034 | -8/Materials | Core integrity fell below 50% 1042 | -8/Materials | Lost 4 parts (1p3n) 1076 | -8/Materials | Core integrity fell below 20% 1126 | -8/Materials | Core destroyed Last Messages --------------- 01059_ G-47 Trooper destroyed. 01060_ K-01 Serf collects debris. 01071_ S-10 Pest destroyed. 01071_ Acquired Carbon-fiber Leg. 01074_ K-01 Serf collects debris. 01075_ Acquired 18 matter. 01077_ K-01 Serf collects debris. 01083_ Acquired 2 matter. 01083_ S-10 Pest destroyed. 01084_ K-01 Serf collects debris. 01086_ System corrupted: Component data lost. 01088_ S-10 Pest destroyed. 01091_ W-25 Informer destroyed. 01092_ K-01 Serf collects debris. 01105_ ALERT: Hostiles spotted, dispatching reinforcements to Terminal M012. 01106_ K-01 Serf collects debris. 01119_ KP%&,YM ,TSNZR#COXXFDF/XVZR/F 01120_ Acquired Greatsword. 01125_ K-01 Serf collects debris. Map ----- +----------------------------------------------------+ | ?????????????????????????+ ?????????????????? | | ?????????????????????????# #????????????????? | | ?????????????????????????# #????????????????? | | ?????????????????????????# #????????????????? | | ?????????????????????????# #????????????????? | | ??????????????###????????# #????????????????? | | ????????????? ?? ????# #????????????????? | | ????????????? ????# #????????????????? | | ???????????? ????# #????????????????? | | ???????????# ????# #????????????????? | | ???????????# ##### ###+###########??? | | ???????????# "% ? | | ???????????+ ? | | ???????????# ? | | ?????????????# ** =%[#########????????? | | ?????????????# ** %[w#????????????????? | | ?????????????# * """*%[=#????????????????? | | ????????###### """" %%########?????????? | | ???????? """"k%%o #?????????? | | ???????? [ #?????????? | | ???????? #?????????? | | ????????????######### ! #?????????? | | ????????????????????# %[! % *=#?????????? | | ??????H?????????##### """""=% *! #????###### | | ????????????????#/ """""*" !=######! | | ????????????????#// @ """ "" *%! = =% | | ????????????????#** == % % T | | ????????????????#** k % | | ????????????????#!! ######### ########## | | ????????????????#!! #???????# #?# ## # | | ????????????????#####???????# #?#[ ## # | | ????????????????????????????# #?# ## # | | ????????????????????????????# #?#!!/ ## # | | ????????????????????????????# #?# ! ## # | | ????????????????????????????# #?#!! ## # | | ????????????????????????????# #######+### # | | ????????????????????????????# | | ????????????????????????????# | | ????????????????????????????# | | ????????????????????????????###########+####### | | ??????????????????????????????????# #?? | | ??????????????????????????????????# ] #?? | | ??????????????????????????????????# ]= [ #?? | | ??????????????????????????????????# #?? | | ??????????????????????????????????###########?? | | | | | | | | | | | +----------------------------------------------------+ Best States ------------- Heat Dissipation 31 Energy Generation 14 Energy Capacity 250 Matter Stores 300 Matter Capacity 300 Sight Range 18 Terrain Scan Range 16 Terrain Scan Density 10 Armor Coverage 225 Evasion (%) 55 Melee Accuracy 5 Recoil Reduction 1 Item Schematics ----------------- Katana | -9/Materials | Scanalyzed Robot Schematics ------------------ None Fabricated ------------ Nothing Alien Tech Used ----------------- None Achievements -------------- None Challenges ------------ None Player 2 | -11 -10 -9 -8 ---------- Run | Yrd Mat Mat Mat Slots Evolved 4 | . 2 2 . Power . | . . . . Propulsion 2 | . 1 1 . Utility 1 | . . 1 . Weapon 1 | . 1 . . Parts Attached 29 | . 8 9 12 Parts Lost 15 | . . . 15 Damage Taken 1669 | . 188 116 1365 Core 593 | . 148 25 420 Player 2/Cogmind (%) 75 | . 86 41 75 Absorbed by Shields . | . . . . Damage Inflicted 1612 | . 204 373 1035 Player 2/Cogmind (%) 57 | . 39 58 65 Combat Hostiles Destroyed 18 | . 4 4 10 Player 2/Cogmind (%) 64 | . 66 50 71 Game ------ Seed CloakingAbsorptionSink Manual? 0 Play Time 00:12:08 Cumulative 27.2 hours Start 2024.04.06 @ 22:39:47 End 2024.04.06 @ 22:50:52 Sessions 1 Manual Loads 0 Difficulty Rogue Special Mode AFD2020/Player2 Game No. 74 Rogue 72 Adventurer 2 Explorer 0 Win Type - Total 0 Types 0/0/0/0/0/0/0/0/0 Lore% 26 Gallery% 38 Achievement% 30 Wizard Run 0 Options --------- Layout 1 ASCII 0 Keyboard 0 Movement Arrows Keybinds 0 Fullscreen 2 Font 24/Smallcaps Map View 50x35 Zoom Use 0% Tactical HUD 1 Map Filters NONE Filters NONE Steam 1 RUN: 5108a486-8552-4ff7-8181-a62204d6f628